[Event "4NCL 2021-22"]
[Site "England"]
[Date "2022.02.13"]
[Round "4.62"]
[White "Stewart, Ashley"]
[Black "Merriman, James"]
[Result "1/2-1/2"]
[ECO "A36"]
[WhiteElo "2062"]
[BlackElo "1861"]
[Annotator "NA"]
[PlyCount "202"]
[EventDate "2021.11.27"]
[EventType "team-tourn"]
[EventCountry "ENG"]
[SourceTitle "playchess.com"]
[Source "ChessBase"]
[SourceQuality "1"]
[TimeControl "40/6000+30:3000+30"]

1. g3 {[%emt 0:00:03]} g6 {[%emt 0:03:35]} 2. Bg2 {[%emt 0:00:27]} Bg7 {[%emt 0:00:05]} 3. c4 {[%emt 0:00:04]} c5 {[%emt 0:00:05]} 4. Nc3 {[%emt 0:00:13]} Nc6 {[%emt 0:00:54]} 5. a3 {[%emt 0:00:32]} e6 {[%emt 0:01:50]} 6. Rb1 {[%emt 0:01:32]} Nge7 {[%emt 0:04:27] 6...Nge7 is better than 6...a5.} 7. b4 {[%emt 0:00:09]} O-O {[%emt 0:01:24]} 8. Nf3 {[%emt 0:06:00]} cxb4 {[%emt 0:10:58]} 9. axb4 {[%emt 0:00:01]} d5 {[%emt 0:00:24]} 10. cxd5 {[%emt 0:04:24]} exd5 {[%emt 0:00:40]} 11. b5 {[%emt 0:08:44] [#]} Ne5 $146 {[%emt 0:02:07]} ({Predecessor:} 11... Na5 12. Ba3 d4 13. Ne4 Nc4 14. Bb4 Re8 15. Qb3 Be6 16. Nfg5 Bd5 17. Nd6 Bxg2 18. Ngxf7 {0-1 (30) Lie,K (2537)-So,W (2822) Chess.com INT 2017}) 12. Nxe5 {[%emt 0:04:59]} Bxe5 {[%emt 0:00:06]} 13. d4 {[%emt 0:00:23]} Bf6 {[%emt 0:01:46]} 14. e3 {[%emt 0:06:48]} Bf5 {[%emt 0:02:05]} 15. Ra1 {[%emt 0:02:21]} Qd7 {[%emt 0:07:32]} 16. Ba3 {[%emt 0:05:09]} Be6 {[%emt 0:29:29]} 17. Qb3 {[%emt 0:03:23]} Rfd8 {[%emt 0:01:56]} 18. O-O {[%emt 0:04:11]} Nc8 {[%emt 0:01:42]} 19. Na4 {[%emt 0:03:24]} Be7 {[%emt 0:02:13]} 20. Rfc1 {[%emt 0:11:57]} b6 {[%emt 0:03:07]} 21. Nc3 {[%emt 0:08:16]} Bxa3 {[%emt 0:02:18]} 22. Rxa3 {[%emt 0:02:57]} Ne7 {[%emt 0:00:35]} 23. Ne2 {[%emt 0:03:30]} Rdc8 {[%emt 0:01:35]} 24. Rca1 {[%emt 0:01:50]} Rc7 {[%emt 0:01:36]} 25. Nf4 {[%emt 0:05:56]} Rac8 {[%emt 0:03:19]} 26. h4 {[%emt 0:02:39]} Kg7 {[%emt 0:06:21]} 27. Bf1 {[%emt 0:03:11]} Nf5 {[%emt 0:03:01]} 28. Ra6 {[%emt 0:02:40]} Rb7 {[%emt 0:07:29]} 29. Nd3 {[%emt 0:02:53]} Ne7 {[%emt 0:03:32]} 30. Qa3 {[%emt 0:04:20]} Rcc7 {[%emt 0:00:55]} 31. Kh2 {[%emt 0:05:52]} f6 {[%emt 0:01:51]} 32. Nf4 {[%emt 0:00:45]} Kf7 {[%emt 0:02:00]} 33. Qb3 {[%emt 0:01:19]} Qd6 {[%emt 0:02:17]} (33... g5 $142 34. hxg5 (34. Nxe6 Qxe6 35. Qd1 g4 $16) 34... fxg5) 34. Bg2 {[%emt 0:01:19]} Rd7 {[%emt 0:01:43]} 35. Rc1 {[%emt 0:03:16]} h6 {[%emt 0:01:45]} 36. Raa1 {[%emt 0:01:03]} g5 {[%emt 0:00:12]} 37. hxg5 {[%emt 0:00:57]} hxg5 {[%emt 0:00:09]} 38. Nxe6 {[%emt 0:00:21]} Qxe6 {[%emt 0:00:11]} 39. Rc3 {[%emt 0:01:22]} Rbc7 {[%emt 0:00:41]} 40. Rac1 {[%emt 0:00:34]} Rxc3 {[%emt 0:00:12]} 41. Rxc3 {[%emt 0:02:30]} f5 {[%emt 0:02:54]} 42. Qa2 {[%emt 0:10:23]} Kg7 {[%emt 0:06:01]} 43. Ra3 {[%emt 0:07:54]} Nc8 {[%emt 0:00:15]} 44. Qc2 {[%emt 0:02:31]} Ne7 {[%emt 0:00:14]} 45. Rc3 {[%emt 0:06:01]} Qd6 {[%emt 0:01:32]} 46. Bh3 {[%emt 0:00:49]} g4 {[%emt 0:00:34]} 47. Bg2 {[%emt 0:00:46]} Rd8 {[%emt 0:01:44]} 48. Rc7 {[%emt 0:01:41]} ({White should try} 48. Bf1 $16) 48... Rd7 $11 {[%emt 0:00:13]} 49. Rc3 {[%emt 0:01:53]} Rd8 {[%emt 0:00:04]} 50. Qa2 {[%emt 0:01:33]} Rd7 {[%emt 0:01:08]} 51. Kg1 {[%emt 0:01:06]} Kh7 {[%emt 0:02:22]} 52. Kf1 {[%emt 0:00:34]} Qb4 {[%emt 0:01:12]} 53. Qb3 {[%emt 0:02:04]} Qxb3 {[%emt 0:00:21]} 54. Rxb3 {[%emt 0:00:02]} Rc7 {[%emt 0:00:49]} 55. Rb1 {[%emt 0:04:42]} Kg6 {[%emt 0:00:41]} 56. Ke1 {[%emt 0:01:41]} Kf6 {[%emt 0:00:30]} 57. Kd2 {[%emt 0:00:40]} Ke6 {[%emt 0:00:11]} 58. Ra1 {[%emt 0:03:32]} Nc8 {[%emt 0:00:26]} 59. Rh1 {[%emt 0:00:32]} Ne7 {[%emt 0:00:38]} 60. Rh6+ {[%emt 0:00:53]} Kd7 {[%emt 0:00:10]} 61. Bf1 {[%emt 0:01:10]} Rc8 {[%emt 0:00:44]} 62. Rf6 {[%emt 0:03:54]} Rh8 {[%emt 0:00:27]} 63. Bd3 {[%emt 0:00:12]} Rh5 {[%emt 0:00:13]} 64. Ke2 {[%emt 0:00:20]} Rg5 {[%emt 0:00:35]} 65. Kf1 {[%emt 0:00:14]} Rh5 {[%emt 0:00:25]} 66. Kg2 {[%emt 0:00:48]} Rg5 {[%emt 0:00:15]} 67. Bc2 {[%emt 0:00:28]} Rh5 {[%emt 0:00:20]} 68. Bb1 {[%emt 0:00:29]} Rg5 {[%emt 0:00:09]} 69. f3 {[%emt 0:00:51]} Rh5 {[%emt 0:01:38]} 70. fxg4 {[%emt 0:02:39]} fxg4 {[%emt 0:00:12]} 71. Bd3 {[%emt 0:00:42]} Rg5 {[%emt 0:02:38]} 72. Rf4 {[%emt 0:01:11]} Ke8 {[%emt 0:01:01]} 73. Kf2 {[%emt 0:01:24]} Nc8 {[%emt 0:00:52]} 74. Rf6 {[%emt 0:00:49]} Ke7 {[%emt 0:00:31]} 75. Rc6 {[%emt 0:00:19]} Kd7 {[%emt 0:00:37]} 76. Rh6 {[%emt 0:00:10]} Ne7 {[%emt 0:01:15]} 77. Ke2 {[%emt 0:00:07]} Rg7 {[%emt 0:00:47]} 78. Rf6 {[%emt 0:00:45]} Rg5 {[%emt 0:00:15]} 79. Kd2 {[%emt 0:00:26]} Rg7 {[%emt 0:00:54]} 80. Rf4 {[%emt 0:00:20]} Nc8 {[%emt 0:00:20]} 81. Be2 {[%emt 0:01:15]} Nd6 {[%emt 0:00:09]} 82. Rxg4 {[%emt 0:00:43]} Ne4+ {[%emt 0:00:22]} 83. Kc2 {[%emt 0:00:19]} Rxg4 {[%emt 0:00:08]} 84. Bxg4+ {[%emt 0:00:05]} Kd6 {[%emt 0:00:04]} 85. Bf5 {[%emt 0:00:39]} Nxg3 {[%emt 0:00:08]} 86. Bg6 {[%emt 0:00:13]} Ke6 {[%emt 0:02:39]} 87. Kd2 {[%emt 0:00:32]} Kf6 {[%emt 0:00:10]} 88. Bc2 {[%emt 0:00:48]} Ke6 {[%emt 0:00:49]} 89. Bh7 {[%emt 0:00:14]} Nh5 {[%emt 0:00:21]} 90. Ke2 {[%emt 0:00:47]} Nf6 {[%emt 0:00:12]} 91. Bd3 {[%emt 0:00:08]} Ne8 {[%emt 0:00:56]} 92. Kf3 {[%emt 0:00:19]} Nd6 {[%emt 0:00:11]} 93. Kf4 {[%emt 0:00:27]} Kf6 {[%emt 0:00:07]} 94. Bf1 {[%emt 0:00:16]} Ne4 {[%emt 0:01:31]} 95. Bh3 {[%emt 0:00:46]} Nc3 {[%emt 0:00:24]} 96. Bf1 {[%emt 0:00:36]} Ne4 {[%emt 0:00:19]} 97. Be2 {[%emt 0:00:19]} Nc3 {[%emt 0:00:53]} 98. Bd3 {[%emt 0:00:12]} Na2 {[%emt 0:02:21]} 99. Kf3 {[%emt 0:01:23]} Nb4 {[%emt 0:00:53]} 100. Bf1 {[%emt 0:00:34]} Na2 {[%emt 0:00:39]} 101. Kf2 {[%emt 0:00:18]} Nc1 {[%emt 0:00:55]} 1/2-1/2

[Event "4NCL 2021-22"]
[Site "England"]
[Date "2022.02.13"]
[Round "4.63"]
[White "Metcalfe, Charlie P"]
[Black "Starley, Robert"]
[Result "0-1"]
[ECO "D37"]
[WhiteElo "1792"]
[BlackElo "2053"]
[Annotator "ChessBase"]
[PlyCount "80"]
[EventDate "2021.11.27"]
[EventType "team-tourn"]
[EventCountry "ENG"]
[SourceTitle "playchess.com"]
[Source "ChessBase"]
[SourceQuality "1"]
[TimeControl "40/6000+30:3000+30"]

1. d4 {[%emt 0:02:39]} e6 {[%emt 0:00:06]} 2. c4 {[%emt 0:00:14]} Nf6 {[%emt 0:00:07]} 3. Nf3 {[%emt 0:00:10]} d5 {[%emt 0:00:32]} 4. Nc3 {[%emt 0:00:09]} Be7 {[%emt 0:00:13]} 5. Bf4 {[%emt 0:00:05]} O-O {[%emt 0:00:40]} 6. e3 {[%emt 0:00:42]} a6 {[%emt 0:01:06]} 7. c5 {[%emt 0:00:29]} Nc6 {[%emt 0:02:14]} 8. a3 {[%emt 0:11:30]} Bd7 {[%emt 0:01:10]} 9. h3 {[%emt 0:07:29]} b6 {[%emt 0:03:28]} 10. b4 {[%emt 0:01:38]} Qc8 {[%emt 0:02:00]} 11. Bd3 {[%emt 0:03:59]} bxc5 {[%emt 0:01:23]} 12. bxc5 {[%emt 0:00:22]} Rb8 {[%emt 0:00:43]} 13. Rb1 {[%emt 0:03:08]} Rxb1 {[%emt 0:02:45]} 14. Qxb1 {[%emt 0:00:24]} Qb8 {[%emt 0:06:35]} 15. Bxa6 {[%emt 0:07:15]} Ne4 {[%emt 0:00:49]} 16. Nb5 {[%emt 0:07:39]} Bd8 {[%emt 0:12:35]} 17. Qd3 {[%emt 0:14:06]} Qa8 {[%emt 0:02:09]} 18. Nxc7 {[%emt 0:00:03]} Qa7 {[%emt 0:00:14]} 19. Nxd5 {[%emt 0:17:52]} exd5 {[%emt 0:00:13]} 20. O-O {[%emt 0:00:20]} Bc7 {[%emt 0:03:13]} 21. Rb1 {[%emt 0:03:09]} Rb8 {[%emt 0:03:06]} 22. Rxb8+ {[%emt 0:02:54]} Nxb8 {[%emt 0:03:37]} 23. Bxc7 {[%emt 0:02:47]} Qxc7 {[%emt 0:04:16]} 24. Ne5 {[%emt 0:02:09]} Qa5 {[%emt 0:08:24]} 25. Bb7 {[%emt 0:01:02]} Be6 {[%emt 0:07:52]} 26. Qb1 {[%emt 0:01:20]} Qc7 {[%emt 0:02:26]} 27. Qb5 {[%emt 0:02:53]} Kf8 {[%emt 0:01:28]} 28. a4 {[%emt 0:01:17]} f6 {[%emt 0:06:38]} 29. Nd3 {[%emt 0:02:44]} Bd7 {[%emt 0:10:16]} 30. Qb3 {[%emt 0:04:30]} Bxa4 {[%emt 0:01:09]} 31. Qxd5 {[%emt 0:01:21]} Nc3 {[%emt 0:00:52]} 32. Qf3 {[%emt 0:04:09]} Bd1 {[%emt 0:00:52]} 33. Qf5 {[%emt 0:04:37]} Ne2+ {[%emt 0:06:31]} 34. Kh1 {[%emt 0:01:11]} Qxb7 {[%emt 0:00:09]} 35. Ne5 {[%emt 0:00:58]} Bb3 {[%emt 0:09:58]} 36. c6 {[%emt 0:00:41]} Nxc6 {[%emt 0:01:57]} 37. Nd7+ {[%emt 0:00:06]} Ke7 {[%emt 0:03:48]} 38. Nc5 {[%emt 0:00:16]} Qb4 {[%emt 0:00:34]} 39. Qd7+ {[%emt 0:00:36]} Kf8 {[%emt 0:00:07]} 40. Qxc6 {[%emt 0:01:04]} Qe1+ {[%emt 0:00:09]} 0-1

[Event "4NCL 2021-22"]
[Site "England"]
[Date "2022.02.13"]
[Round "4.64"]
[White "Manmay Chopra"]
[Black "Jakhria, Kushal"]
[Result "1-0"]
[ECO "A05"]
[WhiteElo "1951"]
[BlackElo "1328"]
[Annotator "NA"]
[PlyCount "99"]
[EventDate "2021.11.27"]
[EventType "team-tourn"]
[EventCountry "ENG"]
[SourceTitle "playchess.com"]
[Source "ChessBase"]
[SourceQuality "1"]
[TimeControl "40/6000+30:3000+30"]

1. e4 {[%emt 0:05:31]} c5 {[%emt 0:00:06]} 2. Nf3 {[%emt 0:00:02]} Nc6 {[%emt 0:00:04]} 3. d3 {[%emt 0:00:11]} g6 {[%emt 0:01:47]} 4. g3 {[%emt 0:00:14]} Bg7 {[%emt 0:00:22]} 5. Bg2 {[%emt 0:00:12]} d6 {[%emt 0:00:19]} 6. O-O {[%emt 0:00:13]} Nf6 {[%emt 0:00:06]} 7. Re1 {[%emt 0:00:15]} O-O {[%emt 0:00:38]} 8. Nbd2 {[%emt 0:00:23]} Bd7 {[%emt 0:00:48]} 9. c3 {[%emt 0:01:00]} Ne8 {[%emt 0:00:46]} 10. Nf1 {[%emt 0:00:43]} e5 {[%emt 0:00:24]} 11. Ne3 {[%emt 0:00:28]} Ne7 {[%emt 0:01:07]} 12. h4 {[%emt 0:00:19]} Kh8 {[%emt 0:00:28]} 13. h5 {[%emt 0:00:45]} f5 {[%emt 0:02:30]} 14. hxg6 {[%emt 0:00:28]} fxe4 {[%emt 0:00:45]} 15. Ng5 {[%emt 0:01:06]} Nxg6 {[%emt 0:00:35]} 16. Nxh7 {[%emt 0:08:15]} Kxh7 {[%emt 0:06:49]} 17. Qh5+ {[%emt 0:00:08]} Kg8 {[%emt 0:00:06]} 18. Qxg6 {[%emt 0:00:05]} Bc6 {[%emt 0:06:42]} 19. dxe4 {[%emt 0:01:52]} Nf6 {[%emt 0:00:56]} 20. Nf5 {[%emt 0:00:47]} Qc7 {[%emt 0:00:10]} 21. Bh6 {[%emt 0:00:14]} Ne8 {[%emt 0:00:29]} 22. Rad1 {[%emt 0:04:33]} Rd8 {[%emt 0:00:25]} 23. Bf1 {[%emt 0:01:08]} b5 {[%emt 0:00:38]} 24. a4 {[%emt 0:00:12]} a6 {[%emt 0:01:30]} 25. Bh3 {[%emt 0:02:01]} Qf7 {[%emt 0:01:03]} 26. Qg5 {[%emt 0:01:15]} Qf6 {[%emt 0:00:49]} 27. Qxf6 {[%emt 0:00:37]} Bxf6 {[%emt 0:00:45]} 28. Bxf8 {[%emt 0:00:08]} Kxf8 {[%emt 0:00:10]} 29. a5 {[%emt 0:00:26]} Be7 {[%emt 0:00:37]} 30. Bg2 {[%emt 0:00:23]} Nf6 {[%emt 0:00:15]} 31. f4 {[%emt 0:00:23]} Rb8 {[%emt 0:00:36]} 32. b4 {[%emt 0:00:30]} cxb4 {[%emt 0:00:54]} 33. cxb4 {[%emt 0:00:03]} exf4 {[%emt 0:00:13]} 34. gxf4 {[%emt 0:00:08]} Rd8 {[%emt 0:00:35]} 35. Nxe7 {[%emt 0:00:23]} Kxe7 {[%emt 0:00:06]} 36. e5 {[%emt 0:00:04]} Rg8 {[%emt 0:00:06]} 37. exf6+ {[%emt 0:00:10]} Kf8 {[%emt 0:00:52]} 38. Rd2 {[%emt 0:00:10]} Kf7 {[%emt 0:00:24]} 39. Kf1 {[%emt 0:00:12]} Bxg2+ {[%emt 0:00:14]} 40. Rxg2 {[%emt 0:00:06]} Rc8 {[%emt 0:00:11]} 41. Re4 {[%emt 0:50:31]} Kxf6 {[%emt 0:50:13]} 42. Rd2 {[%emt 0:00:10]} Rc6 {[%emt 0:00:23]} 43. Ke2 {[%emt 0:00:09]} Kf5 {[%emt 0:00:05]} 44. Red4 {[%emt 0:00:09]} Ke6 {[%emt 0:00:12]} 45. f5+ {[%emt 0:00:12]} Kxf5 {[%emt 0:00:11]} 46. Rxd6 {[%emt 0:00:07]} Rc4 {[%emt 0:00:15]} 47. R2d4 {[%emt 0:00:15]} Rc2+ {[%emt 0:00:08]} 48. Kf3 {[%emt 0:00:06]} Rc3+ {[%emt 0:00:07]} 49. Rd3 {[%emt 0:00:06]} Rc4 {[%emt 0:00:41]} 50. R3d5# {[%emt 0:00:03]} 1-0

[Event "4NCL 2021-22"]
[Site "England"]
[Date "2022.02.13"]
[Round "4.66"]
[White "Payne, Matthew J"]
[Black "Barry, Colm"]
[Result "0-1"]
[ECO "B01"]
[WhiteElo "2158"]
[BlackElo "2241"]
[Annotator "ChessBase"]
[PlyCount "80"]
[EventDate "2021.11.27"]
[EventType "team-tourn"]
[EventCountry "ENG"]
[SourceTitle "playchess.com"]
[Source "ChessBase"]
[SourceQuality "1"]
[TimeControl "40/6000+30:3000+30"]

1. e4 {[%emt 0:00:11]} d5 {[%emt 0:01:37]} 2. exd5 {[%emt 0:00:11]} Qxd5 {[%emt 0:00:08]} 3. Nf3 {[%emt 0:00:09]} Nf6 {[%emt 0:00:09]} 4. Be2 {[%emt 0:00:08]} e6 {[%emt 0:07:25]} 5. d4 {[%emt 0:02:58]} Be7 {[%emt 0:08:54]} 6. c4 {[%emt 0:04:01]} Qd8 {[%emt 0:05:48]} 7. Nc3 {[%emt 0:04:13]} O-O {[%emt 0:02:26]} 8. Bf4 {[%emt 0:05:51]} c5 {[%emt 0:08:33]} 9. d5 {[%emt 0:11:30]} exd5 {[%emt 0:03:13]} 10. cxd5 {[%emt 0:03:52]} Bd6 {[%emt 0:05:10]} 11. Bxd6 {[%emt 0:01:36]} Qxd6 {[%emt 0:00:07]} 12. Nd2 {[%emt 0:00:08]} Rd8 {[%emt 0:16:07]} 13. Nc4 {[%emt 0:18:36]} Qf4 {[%emt 0:06:42]} 14. O-O {[%emt 0:00:12]} Bg4 {[%emt 0:01:30]} 15. Ne3 {[%emt 0:08:57]} Bxe2 {[%emt 0:01:48]} 16. Qxe2 {[%emt 0:00:08]} Nbd7 {[%emt 0:01:12]} 17. Qc4 {[%emt 0:00:30]} Qxc4 {[%emt 0:10:00]} 18. Nxc4 {[%emt 0:00:09]} Nb6 {[%emt 0:01:36]} 19. Nxb6 {[%emt 0:00:39]} axb6 {[%emt 0:00:06]} 20. Rad1 {[%emt 0:00:20]} b5 {[%emt 0:00:31]} 21. Rfe1 {[%emt 0:08:55]} b4 {[%emt 0:02:38]} 22. Ne4 {[%emt 0:00:08]} Nxe4 {[%emt 0:00:22]} 23. Rxe4 {[%emt 0:00:05]} Kf8 {[%emt 0:00:38]} 24. d6 {[%emt 0:03:59]} Rd7 {[%emt 0:01:23]} 25. g4 {[%emt 0:04:38]} Rxa2 {[%emt 0:11:48]} 26. Rc1 {[%emt 0:05:00]} b6 {[%emt 0:07:12]} 27. Rxb4 {[%emt 0:00:05]} Rxd6 {[%emt 0:00:11]} 28. Rb5 {[%emt 0:00:03]} Rg6 {[%emt 0:01:21]} 29. Kf1 {[%emt 0:00:59]} Ke7 {[%emt 0:00:46]} 30. Rd1 {[%emt 0:02:44]} Rxg4 {[%emt 0:02:16]} 31. Rxb6 {[%emt 0:00:11]} Rb4 {[%emt 0:00:38]} 32. Rc6 {[%emt 0:02:31]} Rbxb2 {[%emt 0:01:17]} 33. Rc7+ {[%emt 0:00:05]} Ke6 {[%emt 0:01:11]} 34. Rc6+ {[%emt 0:00:38]} Ke7 {[%emt 0:00:47]} 35. Rc7+ {[%emt 0:00:08]} Kf6 {[%emt 0:00:23]} 36. Rc6+ {[%emt 0:00:30]} Kg5 {[%emt 0:00:09]} 37. Rxc5+ {[%emt 0:01:20]} f5 {[%emt 0:00:07]} 38. h4+ {[%emt 0:00:07]} Kg4 {[%emt 0:00:30]} 39. Rd4+ {[%emt 0:06:17]} Kh3 {[%emt 0:00:26]} 40. Rc3+ {[%emt 0:03:12]} Kh2 {[%emt 0:00:09]} 0-1

[Event "4NCL 2021-22"]
[Site "England"]
[Date "2022.02.13"]
[Round "4.68"]
[White "Brewer, Callum D"]
[Black "Arnott, Jonathan W"]
[Result "1/2-1/2"]
[ECO "C06"]
[WhiteElo "2147"]
[BlackElo "2121"]
[Annotator "NA"]
[PlyCount "42"]
[EventDate "2021.11.27"]
[EventType "team-tourn"]
[EventCountry "ENG"]
[SourceTitle "playchess.com"]
[Source "ChessBase"]
[SourceQuality "1"]
[TimeControl "40/6000+30:3000+30"]

1. e4 {[%emt 0:01:31]} e6 {[%emt 0:00:06]} 2. d4 {[%emt 0:00:06]} d5 {[%emt 0:00:05]} 3. Nd2 {[%emt 0:00:02]} Nf6 {[%emt 0:00:15]} 4. e5 {[%emt 0:00:06]} Nfd7 {[%emt 0:00:06]} 5. Bd3 {[%emt 0:00:05]} c5 {[%emt 0:00:09]} 6. c3 {[%emt 0:00:03]} Nc6 {[%emt 0:00:09]} 7. Ne2 {[%emt 0:00:05]} cxd4 {[%emt 0:00:06]} 8. cxd4 {[%emt 0:00:02]} f6 {[%emt 0:00:05]} 9. exf6 {[%emt 0:00:06]} Nxf6 {[%emt 0:00:05]} 10. O-O {[%emt 0:01:13]} Bd6 {[%emt 0:00:05]} 11. Nf3 {[%emt 0:00:37]} O-O {[%emt 0:00:19]} 12. h3 {[%emt 0:01:50]} Bd7 {[%emt 0:01:09]} 13. Re1 {[%emt 0:05:22]} e5 {[%emt 0:13:49]} 14. dxe5 {[%emt 0:07:44]} Nxe5 {[%emt 0:00:10]} 15. Nxe5 {[%emt 0:00:27]} Bxe5 {[%emt 0:00:05]} 16. Be3 {[%emt 0:16:45]} Bxb2 {[%emt 0:15:47]} 17. Rb1 {[%emt 0:00:23]} Be5 {[%emt 0:00:13]} 18. Rxb7 {[%emt 0:02:17]} Qa5 {[%emt 0:02:56]} 19. Bd2 {[%emt 0:11:18]} Qc5 {[%emt 0:14:04]} 20. Be3 {[%emt 0:18:02]} Qa5 {[%emt 0:00:50]} 21. Bd2 {[%emt 0:17:24]} Qc5 {[%emt 0:01:17]} 1/2-1/2

[Event "4NCL 2021-22"]
[Site "England"]
[Date "2022.02.13"]
[Round "4.69"]
[White "Heritage, Jamie"]
[Black "Grant, David J"]
[Result "0-1"]
[ECO "B59"]
[WhiteElo "2114"]
[BlackElo "2080"]
[Annotator "NA"]
[PlyCount "86"]
[EventDate "2021.11.27"]
[EventType "team-tourn"]
[EventCountry "ENG"]
[SourceTitle "playchess.com"]
[Source "ChessBase"]
[SourceQuality "1"]
[TimeControl "40/6000+30:3000+30"]

1. e4 {[%emt 0:00:29]} c5 {[%emt 0:01:03]} 2. Nf3 {[%emt 0:01:18]} d6 3. d4 {[%emt 0:00:17]} cxd4 {[%emt 0:01:14]} 4. Nxd4 {[%emt 0:00:04]} Nf6 {[%emt 0:00:07]} 5. Nc3 {[%emt 0:00:25]} Nc6 {[%emt 0:00:52]} 6. Be2 {[%emt 0:02:45]} e5 {[%emt 0:01:06]} 7. Nb3 {[%emt 0:02:31]} Be7 {[%emt 0:01:24]} 8. Be3 {[%emt 0:07:10]} Be6 {[%emt 0:02:59]} 9. Qd2 {[%emt 0:09:58]} O-O {[%emt 0:03:01]} 10. O-O-O {[%emt 0:02:15]} a5 {[%emt 0:04:13]} 11. Bb5 {[%emt 0:21:59]} a4 {[%emt 0:04:53]} 12. Bxa4 {[%emt 0:01:12]} Nxe4 {[%emt 0:02:15]} 13. Nxe4 {[%emt 0:00:02]} Rxa4 {[%emt 0:00:11]} 14. Nc3 {[%emt 0:00:16]} Ra6 {[%emt 0:02:50]} 15. Kb1 {[%emt 0:10:48]} Qa8 {[%emt 0:16:57]} 16. a3 {[%emt 0:13:23]} Rc8 {[%emt 0:02:41]} 17. Nd5 {[%emt 0:02:39]} Bd8 {[%emt 0:00:17]} 18. h4 {[%emt 0:05:35]} b5 {[%emt 0:11:39]} 19. f3 {[%emt 0:05:46]} b4 {[%emt 0:07:22]} 20. Nxb4 {[%emt 0:02:30]} Nxb4 {[%emt 0:01:09]} 21. Qxb4 {[%emt 0:00:04]} Bf5 {[%emt 0:00:28]} 22. Rd2 {[%emt 0:04:04]} Rb8 {[%emt 0:02:49]} 23. Qc4 {[%emt 0:00:15]} Ra4 {[%emt 0:08:11]} 24. Qd5 {[%emt 0:03:04]} Qxd5 {[%emt 0:00:28]} 25. Rxd5 {[%emt 0:00:03]} Rxb3 {[%emt 0:00:13]} 26. g4 {[%emt 0:01:07]} Rxe3 {[%emt 0:03:56]} 27. gxf5 {[%emt 0:00:14]} Bc7 {[%emt 0:00:26]} 28. Rd3 {[%emt 0:02:59]} Rxd3 {[%emt 0:00:59]} 29. cxd3 {[%emt 0:00:05]} Kf8 {[%emt 0:00:15]} 30. Rc1 {[%emt 0:03:24]} Bd8 {[%emt 0:01:50]} 31. Rc4 {[%emt 0:00:03]} Rxc4 {[%emt 0:01:23]} 32. dxc4 {[%emt 0:00:03]} Bxh4 {[%emt 0:00:08]} 33. a4 {[%emt 0:00:10]} Ke8 {[%emt 0:00:36]} 34. b4 {[%emt 0:00:06]} Be1 {[%emt 0:00:39]} 35. b5 {[%emt 0:00:06]} Kd7 {[%emt 0:00:30]} 36. Kc2 {[%emt 0:00:10]} Kc7 {[%emt 0:00:20]} 37. Kd3 {[%emt 0:00:06]} Kb6 {[%emt 0:00:18]} 38. Ke4 {[%emt 0:00:09]} Kc5 {[%emt 0:00:41]} 39. f6 {[%emt 0:00:01]} gxf6 {[%emt 0:00:24]} 40. Kf5 {[%emt 0:00:07]} h5 {[%emt 0:00:08]} 41. f4 {[%emt 0:50:08]} exf4 {[%emt 0:50:32]} 42. Kxf4 {[%emt 0:00:07]} Ba5 {[%emt 0:01:06]} 43. Kf5 {[%emt 0:00:12]} Kxc4 {[%emt 0:00:10]} 0-1

[Event "4NCL 2021-22"]
[Site "England"]
[Date "2022.02.13"]
[Round "4.70"]
[White "Kolani, Arjun"]
[Black "Walton, Alan J"]
[Result "1-0"]
[ECO "C11"]
[WhiteElo "2035"]
[BlackElo "2116"]
[Annotator "ChessBase"]
[PlyCount "90"]
[EventDate "2021.11.27"]
[EventType "team-tourn"]
[EventCountry "ENG"]
[SourceTitle "playchess.com"]
[Source "ChessBase"]
[SourceQuality "1"]
[TimeControl "40/6000+30:3000+30"]

1. e4 {[%emt 0:00:29]} e6 {[%emt 0:00:37]} 2. d4 {[%emt 0:00:36]} d5 {[%emt 0:00:31]} 3. Nc3 {[%emt 0:00:25]} Nf6 {[%emt 0:00:11]} 4. e5 {[%emt 0:00:51]} Nfd7 {[%emt 0:04:03]} 5. Nce2 {[%emt 0:00:32]} c5 {[%emt 0:02:45]} 6. c3 {[%emt 0:00:53]} Nc6 {[%emt 0:01:25]} 7. Nf3 {[%emt 0:00:38]} Be7 {[%emt 0:07:31]} 8. a3 {[%emt 0:06:18]} b6 {[%emt 0:04:51]} 9. Nf4 Qc7 {[%emt 0:04:47]} 10. Bd3 {[%emt 0:22:04]} Bb7 {[%emt 0:00:56]} 11. h4 {[%emt 0:05:26]} h6 {[%emt 0:02:26]} 12. h5 {[%emt 0:05:45]} O-O-O {[%emt 0:01:27]} 13. O-O {[%emt 0:12:28]} Rdg8 {[%emt 0:04:03]} 14. Re1 {[%emt 0:00:12]} Nf8 {[%emt 0:06:44]} 15. a4 {[%emt 0:03:15]} g5 {[%emt 0:06:38]} 16. hxg6 {[%emt 0:01:38]} fxg6 {[%emt 0:00:25]} 17. a5 {[%emt 0:15:47]} c4 {[%emt 0:03:39]} 18. axb6 {[%emt 0:00:32]} axb6 {[%emt 0:00:03]} 19. Bc2 {[%emt 0:05:22]} h5 {[%emt 0:00:06]} 20. Nh3 {[%emt 0:01:50]} Nh7 {[%emt 0:13:46]} 21. Nfg5 {[%emt 0:03:23]} Bxg5 {[%emt 0:00:47]} 22. Bxg5 {[%emt 0:02:31]} Nxg5 {[%emt 0:01:12]} 23. Nxg5 {[%emt 0:00:26]} Qe7 {[%emt 0:00:11]} 24. f4 {[%emt 0:01:27]} Nd8 {[%emt 0:00:56]} 25. Qf3 {[%emt 0:04:17]} Kb8 {[%emt 0:07:20]} 26. b3 {[%emt 0:05:33]} cxb3 {[%emt 0:00:42]} 27. Bxb3 {[%emt 0:00:35]} Nf7 {[%emt 0:00:35]} 28. Qh3 {[%emt 0:03:02]} Nxg5 {[%emt 0:00:41]} 29. fxg5 {[%emt 0:00:06]} Rf8 {[%emt 0:00:09]} 30. Bc2 {[%emt 0:01:25]} Rf4 {[%emt 0:02:11]} 31. Rf1 {[%emt 0:02:44]} Rhf8 {[%emt 0:03:15]} 32. Rxf4 {[%emt 0:05:25]} Rxf4 {[%emt 0:00:11]} 33. Bxg6 {[%emt 0:00:32]} Qxg5 {[%emt 0:02:02]} 34. Qxe6 {[%emt 0:00:20]} Rg4 {[%emt 0:00:53]} 35. Bf5 {[%emt 0:00:38]} Qe3+ {[%emt 0:00:47]} 36. Kh1 {[%emt 0:00:21]} Rh4+ {[%emt 0:00:22]} 37. Bh3 {[%emt 0:00:19]} Qxc3 {[%emt 0:00:06]} 38. Qd6+ {[%emt 0:00:53]} Qc7 {[%emt 0:00:01]} 39. Qf6 {[%emt 0:00:30]} Rxh3+ {[%emt 0:03:45]} 40. gxh3 {[%emt 0:00:09]} Qc3 {[%emt 0:00:14]} 41. Qd8+ {[%emt 0:50:41]} Bc8 {[%emt 0:50:22]} 42. Qxb6+ {[%emt 0:00:12]} Bb7 {[%emt 0:00:04]} 43. Qd8+ {[%emt 0:00:26]} Bc8 {[%emt 0:00:15]} 44. Qd6+ {[%emt 0:00:38]} Kb7 {[%emt 0:00:15]} 45. Rb1+ {[%emt 0:00:09]} Ka8 {[%emt 0:00:33]} 1-0